[Event "Early-Titled-Tuesday-Blitz-October-03-2023"]
[Site "Chess.com"]
[Date "2023.10.03"]
[Round "9"]
[White "Better_Chess_Faster"]
[Black "parintele_chess"]
[Result "1/2-1/2"]
[WhiteElo "2020"]
[BlackElo "2234"]
[TimeControl "180+1"]
[EndTime "9:46:44 PDT"]
[Termination "Game drawn by repetition"]

1. e4 {[%clk 0:02:59.8]} 1... e5 {[%clk 0:02:59]} 2. Nf3 {[%clk 0:02:59]} 2...
Nc6 {[%clk 0:02:59.4]} 3. Bb5 {[%clk 0:02:59.5]} 3... a6 {[%clk 0:02:59.4]} 4.
Ba4 {[%clk 0:02:59.1]} 4... Nf6 {[%clk 0:02:59.7]} 5. O-O {[%clk 0:02:58.8]}
5... Be7 {[%clk 0:03:00.2]} 6. Re1 {[%clk 0:02:55.8]} 6... b5 {[%clk 0:03:00.2]}
7. Bb3 {[%clk 0:02:55.8]} 7... O-O {[%clk 0:03:00.8]} 8. a4 {[%clk 0:02:54.3]}
8... Bb7 {[%clk 0:03:00.5]} 9. axb5 {[%clk 0:02:50.1]} 9... axb5 {[%clk
0:03:00.3]} 10. Rxa8 {[%clk 0:02:50]} 10... Bxa8 {[%clk 0:03:01.2]} 11. c3
{[%clk 0:02:49.7]} 11... d5 {[%clk 0:02:58.5]} 12. exd5 {[%clk 0:02:44.2]} 12...
Nxd5 {[%clk 0:02:59.4]} 13. d4 {[%clk 0:02:43.4]} 13... exd4 {[%clk 0:02:52]}
14. Nxd4 {[%clk 0:02:43.2]} 14... Nxd4 {[%clk 0:02:52]} 15. cxd4 {[%clk
0:02:41.2]} 15... Bd6 {[%clk 0:02:41.8]} 16. Nc3 {[%clk 0:02:38.9]} 16... Nxc3
{[%clk 0:02:29.8]} 17. bxc3 {[%clk 0:02:38.3]} 17... Qh4 {[%clk 0:02:25.5]} 18.
g3 {[%clk 0:02:34.8]} 18... Qh3 {[%clk 0:02:22.9]} 19. d5 {[%clk 0:02:26.2]}
19... f5 {[%clk 0:01:59.7]} 20. f4 {[%clk 0:02:03.5]} 20... g5 {[%clk
0:01:25.5]} 21. Qe2 {[%clk 0:01:48.4]} 21... gxf4 {[%clk 0:00:18.6]} 22. Qe6+
{[%clk 0:01:47.3]} 22... Kh8 {[%clk 0:00:12.5]} 23. c4 {[%clk 0:01:41.7]} 23...
Bc5+ {[%clk 0:00:08.6]} 24. Kh1 {[%clk 0:01:31.9]} 24... Bd4 {[%clk 0:00:08.3]}
25. Bxf4 {[%clk 0:01:24.6]} 25... bxc4 {[%clk 0:00:08.5]} 26. Bxc4 {[%clk
0:01:23.7]} 26... Qg4 {[%clk 0:00:07.8]} 27. Be5+ {[%clk 0:01:09.2]} 27... Bxe5
{[%clk 0:00:07.1]} 28. Qxe5+ {[%clk 0:01:08.6]} 28... Qg7 {[%clk 0:00:07.8]} 29.
Qxg7+ {[%clk 0:01:01.4]} 29... Kxg7 {[%clk 0:00:08.7]} 30. Re7+ {[%clk 0:01:01]}
30... Rf7 {[%clk 0:00:09.2]} 31. Rxf7+ {[%clk 0:00:43]} 31... Kxf7 {[%clk
0:00:09]} 32. Kg1 {[%clk 0:00:43.5]} 32... Ke7 {[%clk 0:00:08.7]} 33. Kf2 {[%clk
0:00:38]} 33... Kd6 {[%clk 0:00:08.3]} 34. Bd3 {[%clk 0:00:37.8]} 34... Ke5
{[%clk 0:00:07.8]} 35. d6 {[%clk 0:00:34.8]} 35... cxd6 {[%clk 0:00:07.3]} 36.
Ke3 {[%clk 0:00:35.1]} 36... Be4 {[%clk 0:00:07.9]} 37. Bb5 {[%clk 0:00:33.4]}
37... d5 {[%clk 0:00:08.4]} 38. Be2 {[%clk 0:00:28]} 38... d4+ {[%clk
0:00:08.6]} 39. Kd2 {[%clk 0:00:28]} 39... f4 {[%clk 0:00:06.2]} 40. gxf4+
{[%clk 0:00:25.8]} 40... Kxf4 {[%clk 0:00:07.1]} 41. Bh5 {[%clk 0:00:25.1]}
41... h6 {[%clk 0:00:04.8]} 42. Be2 {[%clk 0:00:22.4]} 42... Bf3 {[%clk
0:00:04.9]} 43. Bxf3 {[%clk 0:00:17.3]} 43... Kxf3 {[%clk 0:00:04.9]} 44. Kd3
{[%clk 0:00:18.2]} 44... Kg2 {[%clk 0:00:04.7]} 45. Kxd4 {[%clk 0:00:18.1]}
45... Kxh2 {[%clk 0:00:03.1]} 46. Ke3 {[%clk 0:00:18.7]} 46... h5 {[%clk
0:00:03.6]} 47. Kf2 {[%clk 0:00:18]} 47... h4 {[%clk 0:00:03.9]} 48. Kf1 {[%clk
0:00:17]} 48... h3 {[%clk 0:00:04.8]} 49. Kf2 {[%clk 0:00:17.1]} 49... Kh1
{[%clk 0:00:05.1]} 50. Kf1 {[%clk 0:00:17.4]} 50... Kh2 {[%clk 0:00:05.6]} 51.
Kf2 {[%clk 0:00:17.4]} 51... Kh1 {[%clk 0:00:06.5]} 52. Kf1 {[%clk 0:00:17.8]}
52... Kh2 {[%clk 0:00:07.4]} 1/2-1/2

[Event "Early-Titled-Tuesday-Blitz-October-03-2023"]
[Site "Chess.com"]
[Date "2023.10.03"]
[Round "9"]
[White "Xqswdc"]
[Black "Sergey85Rodchenkov"]
[Result "0-1"]
[WhiteElo "2326"]
[BlackElo "2524"]
[TimeControl "180+1"]
[EndTime "9:46:45 PDT"]
[Termination "Sergey85Rodchenkov won by checkmate"]

1. e4 {[%clk 0:03:00.9]} 1... c5 {[%clk 0:02:57.7]} 2. Nf3 {[%clk 0:03:00.7]}
2... d6 {[%clk 0:02:57.8]} 3. Bb5+ {[%clk 0:02:54.7]} 3... Nd7 {[%clk
0:02:57.7]} 4. c3 {[%clk 0:02:52.9]} 4... Nf6 {[%clk 0:02:57]} 5. O-O {[%clk
0:02:50.6]} 5... a6 {[%clk 0:02:52.2]} 6. Bd3 {[%clk 0:02:50]} 6... e6 {[%clk
0:02:48.7]} 7. Bc2 {[%clk 0:02:49.7]} 7... b5 {[%clk 0:02:48]} 8. d4 {[%clk
0:02:50.1]} 8... Bb7 {[%clk 0:02:46.8]} 9. Re1 {[%clk 0:02:50.6]} 9... Be7
{[%clk 0:02:46.4]} 10. Bf4 {[%clk 0:02:49.3]} 10... O-O {[%clk 0:02:37.5]} 11.
Nbd2 {[%clk 0:02:49.3]} 11... Rc8 {[%clk 0:02:12.7]} 12. Nf1 {[%clk 0:02:47.8]}
12... Qc7 {[%clk 0:01:54.7]} 13. Rc1 {[%clk 0:02:46.2]} 13... e5 {[%clk
0:01:47.2]} 14. Bg5 {[%clk 0:02:29.5]} 14... h6 {[%clk 0:01:22.2]} 15. Bh4
{[%clk 0:02:23.1]} 15... Rfe8 {[%clk 0:01:11.6]} 16. Ne3 {[%clk 0:01:58.5]}
16... Bf8 {[%clk 0:00:56.5]} 17. d5 {[%clk 0:01:42.8]} 17... c4 {[%clk
0:00:45.6]} 18. Nf5 {[%clk 0:01:35]} 18... g6 {[%clk 0:00:40]} 19. Ne3 {[%clk
0:01:31.7]} 19... Bg7 {[%clk 0:00:40]} 20. Nd2 {[%clk 0:01:29.7]} 20... Nc5
{[%clk 0:00:27.2]} 21. f3 {[%clk 0:01:28.8]} 21... a5 {[%clk 0:00:27.4]} 22. Ng4
{[%clk 0:01:18.5]} 22... Nh7 {[%clk 0:00:26.8]} 23. Qe2 {[%clk 0:01:05.9]} 23...
Ba6 {[%clk 0:00:26.5]} 24. Qe3 {[%clk 0:01:05.6]} 24... h5 {[%clk 0:00:25.7]}
25. Nf2 {[%clk 0:00:57.9]} 25... Nf6 {[%clk 0:00:22.6]} 26. g4 {[%clk
0:00:45.8]} 26... hxg4 {[%clk 0:00:21.9]} 27. fxg4 {[%clk 0:00:45.5]} 27... Qd7
{[%clk 0:00:19.2]} 28. Bd1 {[%clk 0:00:45.6]} 28... Nh7 {[%clk 0:00:18]} 29. Rf1
{[%clk 0:00:37.8]} 29... f6 {[%clk 0:00:16.8]} 30. Bf3 {[%clk 0:00:31.4]} 30...
g5 {[%clk 0:00:17.1]} 31. Bg3 {[%clk 0:00:31.6]} 31... Nf8 {[%clk 0:00:17.7]}
32. Nh1 {[%clk 0:00:31.1]} 32... Ng6 {[%clk 0:00:17.7]} 33. Be2 {[%clk
0:00:26.6]} 33... Nf4 {[%clk 0:00:17.1]} 34. Bxf4 {[%clk 0:00:27]} 34... exf4
{[%clk 0:00:17.4]} 35. Qf3 {[%clk 0:00:26.4]} 35... Qa7 {[%clk 0:00:17.1]} 36.
Kg2 {[%clk 0:00:26]} 36... Re5 {[%clk 0:00:16.7]} 37. Nf2 {[%clk 0:00:25.6]}
37... Rce8 {[%clk 0:00:16.7]} 38. h4 {[%clk 0:00:26.3]} 38... Bb7 {[%clk
0:00:16.3]} 39. hxg5 {[%clk 0:00:25.6]} 39... fxg5 {[%clk 0:00:16.7]} 40. Rh1
{[%clk 0:00:26.3]} 40... Bxd5 {[%clk 0:00:15]} 41. exd5 {[%clk 0:00:15.2]} 41...
Rxe2 {[%clk 0:00:15.1]} 42. Ne4 {[%clk 0:00:15.4]} 42... R8xe4 {[%clk
0:00:13.1]} 43. Rh5 {[%clk 0:00:04.6]} 43... R4e3 {[%clk 0:00:12.4]} 44. Qxe2
{[%clk 0:00:03.6]} 44... Rxe2 {[%clk 0:00:12.1]} 45. Kf3 {[%clk 0:00:04.5]}
45... Rxf2+ {[%clk 0:00:12.7]} 46. Kxf2 {[%clk 0:00:02.5]} 46... Nd3+ {[%clk
0:00:13.4]} 47. Ke2 {[%clk 0:00:03.4]} 47... Qe3+ {[%clk 0:00:13.5]} 48. Kd1
{[%clk 0:00:04.3]} 48... Qxc1+ {[%clk 0:00:13.6]} 49. Ke2 {[%clk 0:00:04.1]}
49... Qe3+ {[%clk 0:00:14.2]} 50. Kf1 {[%clk 0:00:03.7]} 50... Qf2# {[%clk
0:00:14.4]} 0-1

[Event "Early-Titled-Tuesday-Blitz-October-03-2023"]
[Site "Chess.com"]
[Date "2023.10.03"]
[Round "9"]
[White "PawnEatingZombie"]
[Black "ljuks68"]
[Result "1-0"]
[WhiteElo "2175"]
[BlackElo "2386"]
[TimeControl "180+1"]
[EndTime "9:46:45 PDT"]
[Termination "PawnEatingZombie won by resignation"]

1. e4 {[%clk 0:03:00.9]} 1... e6 {[%clk 0:02:48.8]} 2. d4 {[%clk 0:02:59.3]}
2... d5 {[%clk 0:02:48.9]} 3. e5 {[%clk 0:02:59.8]} 3... c5 {[%clk 0:02:48.9]}
4. c3 {[%clk 0:03:00.4]} 4... Nc6 {[%clk 0:02:49.2]} 5. Nf3 {[%clk 0:03:00.6]}
5... Qb6 {[%clk 0:02:49.6]} 6. Bd3 {[%clk 0:02:58.5]} 6... cxd4 {[%clk
0:02:49.6]} 7. O-O {[%clk 0:02:49.9]} 7... Bd7 {[%clk 0:02:48.7]} 8. Re1 {[%clk
0:02:47.8]} 8... a6 {[%clk 0:02:38]} 9. h4 {[%clk 0:02:35.8]} 9... Nge7 {[%clk
0:02:35.1]} 10. h5 {[%clk 0:02:30]} 10... h6 {[%clk 0:02:34.8]} 11. Nbd2 {[%clk
0:02:23.8]} 11... O-O-O {[%clk 0:02:16.9]} 12. Nb3 {[%clk 0:02:22.4]} 12... dxc3
{[%clk 0:02:14.2]} 13. bxc3 {[%clk 0:02:21.7]} 13... f6 {[%clk 0:02:14.6]} 14.
Be3 {[%clk 0:02:07.5]} 14... Qc7 {[%clk 0:02:12.2]} 15. Bd4 {[%clk 0:01:29.9]}
15... fxe5 {[%clk 0:02:05]} 16. Nxe5 {[%clk 0:01:28]} 16... Nxd4 {[%clk
0:01:57.7]} 17. cxd4 {[%clk 0:01:24.6]} 17... Nc6 {[%clk 0:01:58.1]} 18. Nf7
{[%clk 0:01:23.3]} 18... Bd6 {[%clk 0:01:54.3]} 19. Nxh8 {[%clk 0:01:16.1]}
19... Rxh8 {[%clk 0:01:54]} 20. Rc1 {[%clk 0:01:14]} 20... Kb8 {[%clk
0:01:51.9]} 21. Nc5 {[%clk 0:01:13.5]} 21... Qd8 {[%clk 0:01:37.1]} 22. Nxd7+
{[%clk 0:01:11.9]} 22... Qxd7 {[%clk 0:01:36.9]} 23. Bg6 {[%clk 0:01:04.9]}
23... Rf8 {[%clk 0:01:32.3]} 24. Qg4 {[%clk 0:00:56.7]} 24... Rf6 {[%clk
0:01:30.8]} 25. g3 {[%clk 0:00:52.6]} 25... Bc7 {[%clk 0:01:28]} 26. Rb1 {[%clk
0:00:42]} 26... Ka7 {[%clk 0:01:20.4]} 27. Rb3 {[%clk 0:00:33.6]} 27... b5
{[%clk 0:01:03.1]} 28. Rc1 {[%clk 0:00:26.1]} 28... Bb6 {[%clk 0:00:59.9]} 29.
Rbc3 {[%clk 0:00:25.9]} 29... Nxd4 {[%clk 0:00:59]} 30. Rc8 {[%clk 0:00:22.7]}
30... b4 {[%clk 0:00:22.4]} 31. Rg8 {[%clk 0:00:22]} 31... b3 {[%clk 0:00:18.5]}
32. axb3 {[%clk 0:00:20.6]} 32... Nxb3 {[%clk 0:00:17.3]} 33. Rcc8 {[%clk
0:00:20.3]} 33... Rxf2 {[%clk 0:00:13.7]} 34. Ra8+ {[%clk 0:00:18]} 34... Kb7
{[%clk 0:00:13.9]} 35. Rgb8+ {[%clk 0:00:17.7]} 35... Kc6 {[%clk 0:00:14]} 36.
Rxb6+ {[%clk 0:00:17.5]} 36... Kxb6 {[%clk 0:00:12.4]} 37. Kxf2 {[%clk
0:00:17.4]} 37... Qd6 {[%clk 0:00:11.9]} 38. Qa4 {[%clk 0:00:12.4]} 38... Qc5+
{[%clk 0:00:09.7]} 39. Kg2 {[%clk 0:00:12.3]} 39... Na5 {[%clk 0:00:09.3]} 40.
Qe8 {[%clk 0:00:08.3]} 40... Nc6 {[%clk 0:00:08.9]} 41. Qc8 {[%clk 0:00:05.9]}
41... Qb5 {[%clk 0:00:06.9]} 42. Rb8+ {[%clk 0:00:05]} 42... Nxb8 {[%clk
0:00:06.6]} 43. Qxb8+ {[%clk 0:00:05.4]} 43... Kc5 {[%clk 0:00:07.1]} 44. Qc7+
{[%clk 0:00:04.9]} 44... Kd4 {[%clk 0:00:06.6]} 45. Qxg7+ {[%clk 0:00:04.8]}
45... e5 {[%clk 0:00:07.2]} 46. Qxh6 {[%clk 0:00:05.3]} 46... Qb2+ {[%clk
0:00:06.7]} 47. Kh3 {[%clk 0:00:05.3]} 47... e4 {[%clk 0:00:07]} 48. Qg7+ {[%clk
0:00:05.1]} 48... Kd3 {[%clk 0:00:07.3]} 49. Qxb2 {[%clk 0:00:05.8]} 1-0

[Event "Early-Titled-Tuesday-Blitz-October-03-2023"]
[Site "Chess.com"]
[Date "2023.10.03"]
[Round "9"]
[White "Vaathi_Coming"]
[Black "CSB7"]
[Result "0-1"]
[WhiteElo "2874"]
[BlackElo "2761"]
[TimeControl "180+1"]
[EndTime "9:46:46 PDT"]
[Termination "CSB7 won by resignation"]

1. Nf3 {[%clk 0:03:00.9]} 1... d5 {[%clk 0:02:58.5]} 2. e3 {[%clk 0:03:00.4]}
2... Nf6 {[%clk 0:02:57.1]} 3. d4 {[%clk 0:03:00.3]} 3... c5 {[%clk 0:02:51.9]}
4. Be2 {[%clk 0:03:00.3]} 4... Nc6 {[%clk 0:02:50.7]} 5. O-O {[%clk 0:02:59.9]}
5... Bg4 {[%clk 0:02:50]} 6. Nbd2 {[%clk 0:02:53.8]} 6... e6 {[%clk 0:02:49.3]}
7. h3 {[%clk 0:02:51.6]} 7... Bh5 {[%clk 0:02:48.5]} 8. c3 {[%clk 0:02:48.3]}
8... Rc8 {[%clk 0:02:45.1]} 9. a3 {[%clk 0:02:25.1]} 9... a6 {[%clk 0:02:32.4]}
10. dxc5 {[%clk 0:02:20.2]} 10... Bxc5 {[%clk 0:02:33.3]} 11. b4 {[%clk
0:02:20.9]} 11... Bd6 {[%clk 0:02:27]} 12. Bb2 {[%clk 0:02:21]} 12... Bxf3
{[%clk 0:02:18.9]} 13. Nxf3 {[%clk 0:02:13]} 13... Ne5 {[%clk 0:02:15.9]} 14.
Nd2 {[%clk 0:01:57.7]} 14... O-O {[%clk 0:01:53.1]} 15. f4 {[%clk 0:01:57]}
15... Nc4 {[%clk 0:01:50.1]} 16. Nxc4 {[%clk 0:01:52.1]} 16... dxc4 {[%clk
0:01:51]} 17. Bf3 {[%clk 0:01:52.1]} 17... Qc7 {[%clk 0:01:36.3]} 18. Qc2 {[%clk
0:01:42.8]} 18... e5 {[%clk 0:01:28.8]} 19. g3 {[%clk 0:01:35.1]} 19... Rfe8
{[%clk 0:01:23.2]} 20. Rae1 {[%clk 0:01:34]} 20... Re7 {[%clk 0:00:59.2]} 21.
Bc1 {[%clk 0:01:32.4]} 21... Rce8 {[%clk 0:00:57.4]} 22. Qf2 {[%clk 0:01:30.9]}
22... h6 {[%clk 0:00:52.2]} 23. a4 {[%clk 0:01:16.6]} 23... exf4 {[%clk
0:00:45.2]} 24. exf4 {[%clk 0:01:15.9]} 24... Ne4 {[%clk 0:00:45.3]} 25. Bxe4
{[%clk 0:01:12.8]} 25... Rxe4 {[%clk 0:00:46.2]} 26. Rxe4 {[%clk 0:01:12.6]}
26... Rxe4 {[%clk 0:00:47.1]} 27. Re1 {[%clk 0:01:10.9]} 27... Qe7 {[%clk
0:00:41.5]} 28. Bd2 {[%clk 0:00:43.9]} 28... Rxe1+ {[%clk 0:00:38.1]} 29. Qxe1
{[%clk 0:00:43]} 29... Qxe1+ {[%clk 0:00:37.5]} 30. Bxe1 {[%clk 0:00:43.9]}
30... f5 {[%clk 0:00:26.9]} 31. Kf2 {[%clk 0:00:42.9]} 31... Be7 {[%clk
0:00:27.5]} 32. Ke3 {[%clk 0:00:36.6]} 32... Bf6 {[%clk 0:00:27.3]} 33. a5
{[%clk 0:00:14.7]} 33... Kf7 {[%clk 0:00:26.4]} 34. Kd2 {[%clk 0:00:11.1]} 34...
Ke6 {[%clk 0:00:26.1]} 35. Bf2 {[%clk 0:00:11.3]} 35... Kd5 {[%clk 0:00:26.1]}
36. Bc5 {[%clk 0:00:09.5]} 36... Ke4 {[%clk 0:00:24.1]} 37. Bf2 {[%clk
0:00:06.6]} 37... Kf3 {[%clk 0:00:20.7]} 38. Be1 {[%clk 0:00:06.6]} 38... h5
{[%clk 0:00:15]} 39. h4 {[%clk 0:00:06.4]} 39... g6 {[%clk 0:00:13.4]} 40. Kd1
{[%clk 0:00:03.8]} 40... Be7 {[%clk 0:00:13.5]} 41. Kd2 {[%clk 0:00:03.7]} 41...
Bd6 {[%clk 0:00:13.8]} 42. Kc2 {[%clk 0:00:03.2]} 42... Ke2 {[%clk 0:00:10.5]}
43. Bd2 {[%clk 0:00:03.7]} 43... Kf2 {[%clk 0:00:10.7]} 44. Kd1 {[%clk
0:00:03.1]} 44... Kxg3 {[%clk 0:00:10.3]} 45. Ke2 {[%clk 0:00:03.8]} 45... Bxf4
{[%clk 0:00:09.7]} 46. Be1+ {[%clk 0:00:04]} 46... Kg4 {[%clk 0:00:10.1]} 47.
Kf2 {[%clk 0:00:04.5]} 47... Bg3+ {[%clk 0:00:10]} 0-1

[Event "Early-Titled-Tuesday-Blitz-October-03-2023"]
[Site "Chess.com"]
[Date "2023.10.03"]
[Round "9"]
[White "Kirill_Klukin"]
[Black "SharapovEvgeny"]
[Result "1/2-1/2"]
[WhiteElo "2705"]
[BlackElo "2595"]
[TimeControl "180+1"]
[EndTime "9:46:51 PDT"]
[Termination "Game drawn by repetition"]

1. d4 {[%clk 0:02:59.5]} 1... Nf6 {[%clk 0:02:59.4]} 2. c4 {[%clk 0:02:59.7]}
2... e6 {[%clk 0:02:59.6]} 3. Nc3 {[%clk 0:03:00.1]} 3... Bb4 {[%clk 0:02:59.2]}
4. e3 {[%clk 0:03:00.8]} 4... c5 {[%clk 0:02:59]} 5. Nf3 {[%clk 0:02:58.3]} 5...
d6 {[%clk 0:02:59.1]} 6. Bd2 {[%clk 0:02:58.4]} 6... Nc6 {[%clk 0:02:58.9]} 7.
Bd3 {[%clk 0:02:57.3]} 7... e5 {[%clk 0:02:58.5]} 8. dxe5 {[%clk 0:02:52.4]}
8... Nxe5 {[%clk 0:02:56.7]} 9. Nxe5 {[%clk 0:02:43.7]} 9... dxe5 {[%clk
0:02:56.7]} 10. Qc2 {[%clk 0:02:44.5]} 10... O-O {[%clk 0:02:54]} 11. a3 {[%clk
0:02:43.1]} 11... Bxc3 {[%clk 0:02:53.8]} 12. Bxc3 {[%clk 0:02:43.1]} 12... Qe7
{[%clk 0:02:53.8]} 13. O-O {[%clk 0:02:40.7]} 13... h6 {[%clk 0:02:48.2]} 14.
Rae1 {[%clk 0:02:12]} 14... Re8 {[%clk 0:02:46.7]} 15. f4 {[%clk 0:02:09.9]}
15... e4 {[%clk 0:02:45]} 16. Be2 {[%clk 0:02:10]} 16... Bf5 {[%clk 0:02:41.3]}
17. Rd1 {[%clk 0:02:09.2]} 17... Rad8 {[%clk 0:02:39.8]} 18. h3 {[%clk
0:02:09.3]} 18... h5 {[%clk 0:02:39.6]} 19. Bxf6 {[%clk 0:01:48.6]} 19... Qxf6
{[%clk 0:02:38.1]} 20. Bxh5 {[%clk 0:01:49.1]} 20... Qh4 {[%clk 0:02:33.3]} 21.
Rxd8 {[%clk 0:01:04.1]} 21... Rxd8 {[%clk 0:02:31.7]} 22. Rd1 {[%clk 0:01:04.1]}
22... Rd3 {[%clk 0:02:16]} 23. Qe2 {[%clk 0:00:39.3]} 23... Qg3 {[%clk
0:01:20.9]} 24. Rxd3 {[%clk 0:00:36]} 24... exd3 {[%clk 0:01:20.8]} 25. Qf2
{[%clk 0:00:36.5]} 25... Qxf2+ {[%clk 0:01:07]} 26. Kxf2 {[%clk 0:00:36.9]}
26... Be6 {[%clk 0:01:07.6]} 27. b3 {[%clk 0:00:20.5]} 27... b5 {[%clk
0:01:07.4]} 28. cxb5 {[%clk 0:00:14.3]} 28... Bxb3 {[%clk 0:01:07.1]} 29. Ke1
{[%clk 0:00:15]} 29... Ba4 {[%clk 0:01:02.4]} 30. Kd2 {[%clk 0:00:15]} 30...
Bxb5 {[%clk 0:01:02.6]} 31. Bf3 {[%clk 0:00:14.1]} 31... Kf8 {[%clk 0:00:59.8]}
32. Bd5 {[%clk 0:00:14.2]} 32... c4 {[%clk 0:01:00]} 33. g4 {[%clk 0:00:14.8]}
33... Ke7 {[%clk 0:01:00]} 34. h4 {[%clk 0:00:15.3]} 34... f6 {[%clk 0:01:00.2]}
35. g5 {[%clk 0:00:15.6]} 35... fxg5 {[%clk 0:00:59.7]} 36. hxg5 {[%clk
0:00:16.5]} 36... Kd6 {[%clk 0:00:58.2]} 37. e4 {[%clk 0:00:15.5]} 37... Kc5
{[%clk 0:00:49.5]} 38. Kc3 {[%clk 0:00:15.7]} 38... Bc6 {[%clk 0:00:39.7]} 39.
Bxc4 {[%clk 0:00:14.8]} 39... d2 {[%clk 0:00:39.9]} 40. Be2 {[%clk 0:00:14.2]}
40... Bxe4 {[%clk 0:00:39.1]} 41. Kxd2 {[%clk 0:00:14.8]} 41... Kd4 {[%clk
0:00:39.3]} 42. Bg4 {[%clk 0:00:13.7]} 42... g6 {[%clk 0:00:37.4]} 43. Ke2
{[%clk 0:00:07.4]} 43... Bd3+ {[%clk 0:00:36.6]} 44. Kf3 {[%clk 0:00:07.3]}
44... Be4+ {[%clk 0:00:36.7]} 45. Kg3 {[%clk 0:00:07.5]} 45... Ke3 {[%clk
0:00:36.4]} 46. Be6 {[%clk 0:00:07.8]} 46... a5 {[%clk 0:00:34.7]} 47. Bd7
{[%clk 0:00:07.4]} 47... Bd3 {[%clk 0:00:32]} 48. Kg4 {[%clk 0:00:07.5]} 48...
Be2+ {[%clk 0:00:31.7]} 49. Kg3 {[%clk 0:00:08.1]} 49... Bd3 {[%clk 0:00:31.8]}
50. Bc6 {[%clk 0:00:07.9]} 50... Bf5 {[%clk 0:00:30.4]} 51. Bf3 {[%clk
0:00:07.8]} 51... Bd3 {[%clk 0:00:29]} 52. Bd1 {[%clk 0:00:08.2]} 52... Bf5
{[%clk 0:00:28.4]} 53. Bg4 {[%clk 0:00:07.4]} 53... Bd3 {[%clk 0:00:28.3]} 54.
Bd7 {[%clk 0:00:07.8]} 54... Be4 {[%clk 0:00:27.8]} 55. Bb5 {[%clk 0:00:08.3]}
55... Bf5 {[%clk 0:00:27.8]} 56. Ba4 {[%clk 0:00:08.6]} 56... Be4 {[%clk
0:00:27.8]} 57. Bb3 {[%clk 0:00:09.3]} 57... Bf5 {[%clk 0:00:27.9]} 58. Bd5
{[%clk 0:00:10]} 58... Bd3 {[%clk 0:00:28]} 59. Be6 {[%clk 0:00:10.5]} 59... Be4
{[%clk 0:00:28.1]} 60. Kg4 {[%clk 0:00:10.4]} 60... Bf3+ {[%clk 0:00:27.7]} 61.
Kg3 {[%clk 0:00:10.3]} 61... Be4 {[%clk 0:00:28]} 1/2-1/2

[Event "Early-Titled-Tuesday-Blitz-October-03-2023"]
[Site "Chess.com"]
[Date "2023.10.03"]
[Round "9"]
[White "Good_Knight_Kiss"]
[Black "Wizard_97"]
[Result "0-1"]
[WhiteElo "2420"]
[BlackElo "2536"]
[TimeControl "180+1"]
[EndTime "9:46:51 PDT"]
[Termination "Wizard_97 won on time"]

1. e4 {[%clk 0:03:00.9]} 1... c5 {[%clk 0:02:56.5]} 2. Nf3 {[%clk 0:03:00.2]}
2... d6 {[%clk 0:02:56.7]} 3. d4 {[%clk 0:03:00]} 3... cxd4 {[%clk 0:02:57.6]}
4. Nxd4 {[%clk 0:03:00.8]} 4... Nf6 {[%clk 0:02:58.2]} 5. Nc3 {[%clk 0:03:00.7]}
5... g6 {[%clk 0:02:58.3]} 6. Be3 {[%clk 0:03:00.3]} 6... Bg7 {[%clk 0:02:58.3]}
7. f3 {[%clk 0:03:00.5]} 7... O-O {[%clk 0:02:58.9]} 8. Qd2 {[%clk 0:03:00.5]}
8... Nc6 {[%clk 0:02:59.4]} 9. O-O-O {[%clk 0:03:00.2]} 9... d5 {[%clk
0:03:00.1]} 10. Qe1 {[%clk 0:03:00.1]} 10... e5 {[%clk 0:02:59.4]} 11. Nxc6
{[%clk 0:02:59.6]} 11... bxc6 {[%clk 0:03:00.3]} 12. exd5 {[%clk 0:02:59.7]}
12... Nxd5 {[%clk 0:03:01.2]} 13. Bc4 {[%clk 0:02:59.3]} 13... Be6 {[%clk
0:03:00.6]} 14. Ne4 {[%clk 0:02:58.7]} 14... Qc7 {[%clk 0:02:59.2]} 15. Bc5
{[%clk 0:02:53.9]} 15... Rfd8 {[%clk 0:02:58.4]} 16. g4 {[%clk 0:02:52]} 16...
h6 {[%clk 0:02:57]} 17. h4 {[%clk 0:02:49.8]} 17... Nf4 {[%clk 0:02:55.2]} 18.
Bxe6 {[%clk 0:02:49.1]} 18... Nxe6 {[%clk 0:02:56.1]} 19. Bd6 {[%clk 0:02:47.5]}
19... Qb6 {[%clk 0:02:55.4]} 20. h5 {[%clk 0:02:37.2]} 20... g5 {[%clk
0:02:54.8]} 21. Qc3 {[%clk 0:01:39.1]} 21... Nd4 {[%clk 0:02:50.1]} 22. Kb1
{[%clk 0:01:38.8]} 22... Nb5 {[%clk 0:02:40.5]} 23. Qb3 {[%clk 0:01:18.3]} 23...
Rac8 {[%clk 0:01:50.6]} 24. Be7 {[%clk 0:01:09.6]} 24... Rxd1+ {[%clk
0:01:43.3]} 25. Rxd1 {[%clk 0:01:10.5]} 25... Nd4 {[%clk 0:01:43.8]} 26. Qxb6
{[%clk 0:00:49.1]} 26... axb6 {[%clk 0:01:43]} 27. Rd3 {[%clk 0:00:49.8]} 27...
Bf8 {[%clk 0:01:32.4]} 28. Bf6 {[%clk 0:00:30.4]} 28... Bg7 {[%clk 0:01:22.2]}
29. Nd6 {[%clk 0:00:24.6]} 29... Ra8 {[%clk 0:01:09.4]} 30. Bxg7 {[%clk
0:00:24]} 30... Kxg7 {[%clk 0:01:10.3]} 31. c3 {[%clk 0:00:24.3]} 31... Ne6
{[%clk 0:01:02.4]} 32. Nf5+ {[%clk 0:00:23.7]} 32... Kh7 {[%clk 0:00:28.8]} 33.
Rd7 {[%clk 0:00:19.2]} 33... Rf8 {[%clk 0:00:28.6]} 34. Kc2 {[%clk 0:00:13.3]}
34... Ng7 {[%clk 0:00:28.4]} 35. Nxg7 {[%clk 0:00:07.3]} 35... Kxg7 {[%clk
0:00:29.3]} 36. Re7 {[%clk 0:00:05.8]} 36... Ra8 {[%clk 0:00:23.4]} 37. a3
{[%clk 0:00:05.3]} 37... Ra5 {[%clk 0:00:23.1]} 38. Rc7 {[%clk 0:00:05.1]} 38...
Rc5 {[%clk 0:00:20.4]} 39. Rb7 {[%clk 0:00:05]} 39... b5 {[%clk 0:00:19.7]} 40.
b4 {[%clk 0:00:03.7]} 40... Rc4 {[%clk 0:00:20.1]} 41. Kd3 {[%clk 0:00:03.3]}
41... Kf6 {[%clk 0:00:18.7]} 42. Ra7 {[%clk 0:00:02.4]} 42... Ke6 {[%clk
0:00:18.8]} 43. a4 {[%clk 0:00:02.8]} 43... f5 {[%clk 0:00:16.6]} 44. gxf5+
{[%clk 0:00:02.5]} 44... Kxf5 {[%clk 0:00:17.5]} 45. axb5 {[%clk 0:00:01.9]}
45... cxb5 {[%clk 0:00:18.4]} 46. Ra6 {[%clk 0:00:01.9]} 46... g4 {[%clk
0:00:16.8]} 47. fxg4+ {[%clk 0:00:01]} 47... Rxg4 {[%clk 0:00:17.6]} 48. Rxh6
{[%clk 0:00:01.2]} 48... Rg3+ {[%clk 0:00:18]} 49. Kc2 {[%clk 0:00:01.5]} 49...
Ke4 {[%clk 0:00:18.4]} 50. Rh8 {[%clk 0:00:01.4]} 50... Kd5 {[%clk 0:00:17.8]}
0-1